bitfinex/quotes_SOLUSD_20250212
["timestamp","ask_amount","ask_price","bid_price","bid_amount"]
[1739371833004,13.53733853,192.27,192.23,0.063]
[1739371833496,12.363,192.33,192.23,0.063]
[1739371833497,7.7633,192.33,192.23,46.4564164]
[1739371833705,13.53733853,192.31,192.25,46.3934164]
[1739371834015,2.0,192.31,192.23,0.063]
[1739371834308,13.30843853,192.29,192.23,0.063]
[1739371834508,0.25098,192.25,192.23,0.063]
[1739371834675,0.25098,192.25,192.19,0.063]
[1739371834995,0.25098,192.23,192.19,0.063]
[1739371835199,0.12549,192.23,192.19,0.063]
[1739371836282,13.66282853,192.21,192.19,0.063]
[1739371836900,0.5202,192.22,192.19,0.063]
[1739371837304,20.5202,192.22,192.19,0.063]
[1739371837808,13.41184853,192.21,192.19,0.063]
[1739371838009,0.5202,192.22,192.19,0.063]
[1739371838209,1.3002,192.27,192.19,0.063]
[1739371838593,20.0,192.26,192.2,46.3934164]
[1739371838798,0.52,192.28,192.21,46.3934164]
[1739371839001,0.52,192.28,192.22,46.3934164]
[1739371839204,0.52,192.28,192.24,46.3934164]
[1739371839394,1.2997,192.35,192.26,46.3934164]
[1739371839598,13.91380853,192.34,192.25,46.3934164]
[1739371839793,0.25098,192.3,192.23,46.3934164]
[1739371839996,20.0,192.27,192.21,46.3934164]
[1739371840216,20.0,192.27,192.22,46.3934164]
[1739371840524,20.5201,192.27,192.22,46.3934164]
[1739371840713,20.0,192.27,192.2,5.2028]
[1739371840891,0.52,192.29,192.2,6.29514313]
[1739371841210,13.41184853,192.28,192.23,46.3934164]
[1739371841525,0.52,192.29,192.25,46.3934164]
[1739371841719,13.41184853,192.31,192.23,46.3934164]
[1739371842013,0.52,192.3,192.22,46.3934164]
[1739371842187,20.0,192.28,192.21,51.5959164]
[1739371842392,20.0,192.28,192.21,46.3934164]
[1739371842393,13.41184853,192.27,192.21,46.3934164]
[1739371842791,0.52,192.3,192.22,46.3934164]
[1739371842995,0.52,192.3,192.24,46.3934164]
[1739371843313,0.5199,192.34,192.27,46.3934164]
[1739371843817,14.05723853,192.33,192.27,46.3934164]
[1739371844124,1.42509,192.36,192.25,5.2013]
[1739371844125,1.8191,192.4,192.3,46.3934164]
[1739371844327,1.8191,192.4,192.33,46.3934164]
[1739371844517,0.5197,192.4,192.33,46.3934164]
[1739371844694,0.5197,192.4,192.35,46.3934164]
[1739371845016,0.5197,192.4,192.27,2.34281701]
[1739371845017,13.66282853,192.39,192.31,46.3934164]
[1739371845191,20.0,192.36,192.3,46.3934164]
[1739371845532,20.0,192.32,192.27,46.3934164]
[1739371845693,20.0,192.32,192.26,46.3934164]
[1739371845895,20.5199,192.32,192.27,46.3934164]
[1739371846097,0.5199,192.34,192.29,46.3934164]
[1739371846497,0.5199,192.34,192.26,46.3934164]
[1739371846498,13.53733853,192.33,192.26,46.3934164]
[1739371846715,0.5199,192.34,192.28,46.3934164]
[1739371847129,0.5199,192.34,192.26,46.3934164]
[1739371847331,0.5199,192.34,192.27,46.3934164]
[1739371847538,13.53733853,192.33,192.26,46.3934164]
[1739371847826,20.0,192.26,192.22,0.03]
[1739371848023,0.52,192.28,192.22,0.03]
[1739371848235,0.52,192.28,192.24,46.3934164]
[1739371848526,0.52,192.28,192.23,46.3934164]
[1739371848729,0.52,192.28,192.22,0.03]
[1739371848730,13.53733853,192.27,192.22,0.03]
[1739371849026,20.52,192.28,192.22,0.03]
[1739371849220,20.0,192.26,192.22,0.03]
[1739371849907,0.12549,192.31,192.22,0.03]
[1739371849908,1.2998,192.34,192.25,46.3934164]
[1739371850104,20.0,192.3,192.25,46.3934164]
[1739371850509,13.53733853,192.29,192.22,46.4234164]
[1739371850700,13.53733853,192.29,192.22,0.03]
[1739371850900,13.53733853,192.29,192.22,46.4234164]
[1739371851219,0.12549,192.33,192.24,46.3934164]
[1739371851420,0.12549,192.33,192.23,46.3934164]
[1739371851813,20.0,192.3,192.23,46.3934164]
[1739371852018,20.0,192.3,192.26,46.3934164]
[1739371852320,0.5199,192.32,192.29,46.3934164]
[1739371852720,0.5199,192.34,192.28,46.3934164]
[1739371853021,0.12549,192.33,192.23,46.3934164]
[1739371853222,0.12549,192.29,192.22,0.03]
[1739371853401,20.0,192.28,192.22,0.03]
[1739371853601,13.53733853,192.27,192.22,0.03]
[1739371853931,0.5201,192.26,192.22,0.03]
[1739371854624,1.3001,192.29,192.22,28.65742256]
[1739371854929,0.5198,192.36,192.28,28.62742256]
[1739371855129,0.5198,192.36,192.3,28.62742256]
[1739371855332,20.0,192.35,192.29,28.62742256]
[1739371855623,0.5198,192.36,192.29,28.62742256]
[1739371855823,0.5198,192.36,192.26,28.62742256]
[1739371855824,20.0,192.32,192.26,28.62742256]
[1739371856024,20.0,192.32,192.25,28.62742256]
[1739371856025,20.5199,192.32,192.25,28.62742256]
[1739371856230,20.5199,192.32,192.26,28.62742256]
[1739371856546,13.53733853,192.31,192.23,28.62742256]
[1739371857206,20.0,192.28,192.22,28.65742256]
[1739371857406,1.5119,192.39,192.3,20.0]
[1739371857635,6.2966,192.43,192.36,28.62742256]
[1739371857852,1.299,192.45,192.36,28.62742256]
[1739371858023,0.5196,192.43,192.35,28.62742256]
[1739371858420,0.12549,192.42,192.36,28.62742256]
[1739371858628,0.5196,192.43,192.36,28.62742256]
[1739371858818,5.01015488,192.49,192.36,28.87840256]
[1739371858819,1.6608,192.49,192.36,28.87840256]
[1739371859047,0.5196,192.45,192.36,28.62742256]
[1739371859423,1.6608,192.49,192.36,28.62742256]
[1739371859618,0.5195,192.47,192.36,46.66616886]
[1739371859840,0.5195,192.47,192.36,47.75728805]
[1739371860030,1.2987,192.5,192.36,47.75728805]
[1739371860031,20.0,192.46,192.36,52.95578805]
[1739371860226,20.0,192.46,192.36,54.08127805]
[1739371860554,0.5194,192.52,192.36,68.49312658]
[1739371861134,20.0,192.46,192.36,52.70480805]
[1739371861336,0.0001,192.37,192.36,56.20800805]
[1739371861660,82.7194,192.52,192.39,22.0]
[1739371861859,0.12549,192.47,192.39,46.41518886]
[1739371862151,0.12549,192.43,192.36,46.41518886]
[1739371862539,20.5196,192.44,192.38,46.41518886]
[1739371862744,20.5196,192.44,192.37,46.41518886]
[1739371863056,20.5196,192.44,192.3,54.13278886]
[1739371863057,0.12549,192.39,192.31,46.41518886]
[1739371863229,13.91380853,192.39,192.31,46.41518886]
[1739371863747,20.0,192.43,192.32,46.41518886]
[1739371864069,20.0,192.43,192.28,61.86]
[1739371864070,13.53733853,192.36,192.28,61.86]
[1739371864253,13.53733853,192.36,192.25,46.41518886]
[1739371864254,20.0,192.33,192.25,46.41518886]
[1739371864451,20.0,192.33,192.26,46.41518886]
[1739371864838,20.0,192.33,192.27,46.41518886]
[1739371865033,20.0,192.33,192.22,0.03]
[1739371865238,0.12549,192.28,192.22,0.03]
[1739371865759,13.78831853,192.32,192.26,46.41518886]
[1739371866061,20.0,192.35,192.23,46.41518886]
[1739371866269,0.12549,192.26,192.22,0.03]
[1739371866447,20.0,192.23,192.22,0.03]
[1739371866759,33.91380853,192.23,192.22,0.03]
[1739371867165,33.91380853,192.23,192.19,0.063]
[1739371867342,33.91380853,192.2,192.19,0.063]
[1739371867861,0.12549,192.2,192.19,0.063]
[1739371868043,1.8203,192.27,192.19,0.063]
[1739371868237,20.0,192.2,192.19,0.063]
[1739371868444,20.0,192.21,192.19,0.063]
[1739371868862,20.0,192.23,192.19,46.47818886]
[1739371869108,20.0,192.23,192.19,0.063]
[1739371869235,0.12549,192.22,192.19,0.063]
[1739371869439,20.12549,192.2,192.19,0.063]
[1739371870141,20.64569,192.2,192.19,0.063]
[1739371870732,34.18302853,192.2,192.19,0.063]
[1739371870938,34.43400853,192.2,192.19,0.063]
[1739371872774,34.40655267,192.2,192.19,0.063]
[1739371872953,13.91380853,192.19,192.18,0.063]
[1739371873463,13.91380853,192.19,192.15,0.03]
[1739371874050,13.91380853,192.19,192.11,0.063]
[1739371874051,0.50196,192.14,192.11,0.063]
[1739371874238,13.91380853,192.12,192.11,0.063]
[1739371874441,0.25098,192.1,192.02,0.03]
[1739371874664,13.66282853,192.08,192.02,0.03]
[1739371874864,18.9156,192.05,192.02,0.03]
[1739371875045,0.12549,192.04,192.02,0.03]
[1739371875236,18.9156,192.05,192.02,0.03]
[1739371875440,6.51275766,192.14,192.04,46.41518886]
[1739371875441,1.8215,192.14,192.04,46.41518886]
[1739371875649,0.5204,192.14,192.09,46.41518886]
[1739371875977,88.6052,192.21,192.03,6.363759]
[1739371875978,0.5203,192.17,192.08,46.41518886]
[1739371876268,0.5203,192.17,192.03,46.47818886]
[1739371876269,1.3009,192.17,192.03,46.47818886]
[1739371876444,13.91380853,192.16,192.03,46.47818886]
[1739371876657,13.91380853,192.16,192.04,46.41518886]
[1739371876861,13.91380853,192.16,192.06,46.41518886]
[1739371877075,13.91380853,192.16,192.03,0.063]
[1739371877076,13.66282853,192.12,192.05,46.41518886]
[1739371877296,20.0,192.09,192.04,46.41518886]
[1739371877760,0.12549,192.12,192.04,46.41518886]
[1739371878088,0.5204,192.15,192.08,46.41518886]
[1739371878301,0.5204,192.15,192.09,46.41518886]
[1739371878856,20.0,192.14,192.07,46.41518886]
[1739371879176,0.12549,192.12,192.04,46.41518886]
[1739371879379,0.25098,192.12,192.03,0.063]
[1739371879566,0.25098,192.12,192.04,46.41518886]
[1739371879764,20.0,192.1,192.03,46.47818886]
[1739371879986,20.0,192.06,192.03,0.063]
[1739371880286,13.66282853,192.05,192.03,0.063]
[1739371881094,13.91380853,192.04,192.03,0.063]
[1739371882069,14.43450853,192.04,192.03,0.063]
[1739371882967,0.64619,192.04,192.03,0.063]
[1739371883463,0.5207,192.04,192.03,0.063]
[1739371883882,20.0,192.05,192.03,0.063]
[1739371884071,0.5207,192.05,192.03,0.063]
[1739371884993,20.0,192.05,192.03,0.063]
[1739371885564,20.5206,192.06,192.03,0.063]
[1739371886086,0.5204,192.13,192.04,46.41518886]
[1739371886262,0.5204,192.13,192.06,46.41518886]
[1739371886565,0.5204,192.13,192.03,1.15625214]
[1739371886566,0.5204,192.13,192.07,46.41518886]
[1739371886774,0.5204,192.15,192.1,46.41518886]
[1739371887001,0.063,192.16,192.11,46.41518886]
[1739371887296,0.063,192.16,192.13,46.41518886]
[1739371887808,0.063,192.16,192.12,46.41518886]
[1739371888172,0.063,192.16,192.11,46.41518886]
[1739371888388,0.063,192.16,192.08,46.41518886]
[1739371888606,20.0,192.14,192.06,46.41518886]
[1739371888908,20.0,192.14,192.08,46.41518886]
[1739371889068,0.063,192.16,192.09,46.41518886]
[1739371889270,0.25098,192.15,192.06,46.41518886]
[1739371889470,20.0,192.1,192.05,46.41518886]
[1739371889773,0.063,192.16,192.06,46.41518886]
[1739371889983,0.063,192.16,192.07,46.41518886]
[1739371890277,20.0,192.13,192.06,46.41518886]
[1739371890484,0.12549,192.12,192.05,46.41518886]
[1739371890804,20.0,192.13,192.06,46.41518886]
[1739371890970,20.0,192.13,192.07,46.41518886]
[1739371891171,20.5204,192.13,192.09,46.41518886]
[1739371891604,0.063,192.16,192.09,46.41518886]
[1739371891812,0.063,192.16,192.11,46.41518886]
[1739371892182,0.063,192.16,192.1,46.41518886]
[1739371892376,20.0,192.13,192.07,46.41518886]
[1739371892786,20.0,192.13,192.09,46.41518886]
[1739371892989,20.0,192.13,192.07,46.41518886]
[1739371893295,20.0,192.13,192.09,46.41518886]
[1739371893502,20.0,192.13,192.1,46.41518886]
[1739371893709,20.0,192.13,192.09,46.41518886]
[1739371893885,20.0,192.13,192.07,46.41518886]
[1739371894086,0.5205,192.12,192.07,46.41518886]
[1739371894885,0.5205,192.12,192.04,5.2372]
[1739371894886,0.5205,192.12,192.08,46.41518886]
[1739371895087,0.5205,192.12,192.07,46.41518886]
[1739371895286,0.5205,192.12,192.06,46.41518886]
[1739371895489,0.5205,192.12,192.04,0.03]
[1739371895490,0.5205,192.12,192.07,46.41518886]
[1739371895684,0.5205,192.12,192.08,28.66839645]
[1739371896183,0.5205,192.12,192.04,5.2372]
[1739371896184,0.5205,192.12,192.07,28.66839645]
[1739371896400,0.5205,192.12,192.05,28.66839645]
[1739371896726,0.5205,192.12,192.07,28.66839645]
[1739371897010,0.5205,192.12,192.09,28.66839645]
[1739371897203,0.12549,192.11,192.05,28.66839645]
[1739371897404,20.0,192.1,192.04,28.69839645]
[1739371897906,20.0,192.1,192.06,28.66839645]
[1739371898304,0.5205,192.09,192.06,28.66839645]
[1739371898811,0.5204,192.14,192.08,28.66839645]
[1739371898985,0.5204,192.14,192.13,28.66839645]
[1739371899185,0.063,192.16,192.13,28.66839645]
[1739371899387,0.063,192.16,192.15,28.66839645]
[1739371900201,0.063,192.16,192.15,34.96522497]
[1739371900404,0.063,192.16,192.15,35.96522497]
[1739371900599,0.5201,192.27,192.16,1.0]
[1739371900798,0.5201,192.27,192.23,28.66839645]
[1739371901303,20.5201,192.27,192.23,28.66839645]
[1739371901608,0.5201,192.27,192.24,46.50326128]
[1739371901814,1.2999,192.32,192.17,2.09228403]
[1739371901815,8.1008,192.35,192.26,46.50326128]
[1739371901997,0.5199,192.34,192.29,46.50326128]
[1739371902192,82.2,192.4,192.29,46.50326128]
[1739371902399,1.8191,192.39,192.31,46.50326128]
[1739371902608,1.8191,192.39,192.29,46.50326128]
[1739371902609,0.37647,192.37,192.29,46.50326128]
[1739371902810,0.18849,192.36,192.28,46.50326128]
[1739371903012,0.063,192.36,192.31,46.50326128]
[1739371903491,20.0,192.34,192.31,46.50326128]
[1739371903697,0.063,192.36,192.3,46.50326128]
[1739371904006,0.063,192.36,192.24,2.69851433]
[1739371904007,0.063,192.36,192.31,46.50326128]
[1739371904202,20.0,192.34,192.29,46.50326128]
[1739371904413,0.5199,192.33,192.27,46.50326128]
[1739371904729,0.5199,192.33,192.28,46.50326128]
[1739371906240,0.5199,192.33,192.3,46.50326128]
[1739371907119,0.5199,192.33,192.31,46.50326128]
[1739371907298,0.5199,192.33,192.3,46.50326128]
[1739371908191,0.5199,192.35,192.32,46.50326128]
[1739371908396,0.063,192.36,192.34,46.50326128]
[1739371908597,0.5828,192.36,192.35,46.50326128]
[1739371908832,0.063,192.36,192.35,46.50326128]
[1739371909320,0.063,192.36,192.35,47.59452641]
[1739371909530,0.063,192.36,192.35,48.59452641]
[1739371909818,0.063,192.36,192.35,46.50326128]
[1739371910022,0.063,192.36,192.34,46.50326128]
[1739371910320,0.063,192.36,192.35,46.50326128]
[1739371911231,0.063,192.36,192.35,47.59456267]
[1739371911402,0.063,192.36,192.35,48.84554267]
[1739371911602,0.063,192.36,192.35,47.59456267]
[1739371911799,0.063,192.36,192.35,46.50326128]
[1739371912429,0.063,192.36,192.35,47.59464208]
[1739371912609,0.063,192.36,192.35,52.79344208]
[1739371913999,0.063,192.36,192.35,53.79344208]
[1739371914197,0.063,192.36,192.35,52.79344208]
[1739371914412,0.063,192.36,192.35,51.70206128]
[1739371914813,0.063,192.36,192.35,46.50326128]
[1739371915013,0.063,192.36,192.33,46.50326128]
[1739371916630,0.063,192.36,192.34,46.50326128]
[1739371916925,0.063,192.36,192.35,46.50326128]
[1739371918613,0.063,192.36,192.35,51.70206128]
[1739371919427,0.063,192.36,192.35,52.79333234]
[1739371920221,0.063,192.36,192.35,54.04431234]
[1739371920536,7.5601,192.51,192.38,21.0]
[1739371920842,0.5194,192.5,192.48,46.50326128]
[1739371921006,0.5194,192.5,192.44,46.50326128]
[1739371921409,0.5194,192.5,192.46,46.50326128]
[1739371921829,0.5194,192.5,192.47,46.50326128]
[1739371922024,0.5194,192.5,192.46,46.50326128]
[1739371922332,0.5824,192.53,192.49,46.50326128]
[1739371922499,0.5824,192.53,192.52,46.50326128]
[1739371922500,0.063,192.53,192.52,46.50326128]
[1739371923009,0.5824,192.53,192.48,46.50326128]
[1739371923204,0.5824,192.53,192.43,1.09079106]
[1739371923418,0.5824,192.53,192.46,46.50326128]
[1739371923621,0.063,192.53,192.5,28.53822181]
[1739371923818,0.063,192.53,192.51,28.53822181]
[1739371924412,0.063,192.53,192.52,28.53822181]
[1739371925808,0.063,192.53,192.52,29.78920181]
[1739371926008,0.063,192.53,192.52,28.53822181]
[1739371926416,0.063,192.53,192.52,33.73242181]
[1739371927340,0.063,192.53,192.52,28.53822181]
[1739371928118,0.063,192.53,192.52,35.10889181]
[1739371928332,0.063,192.56,192.53,1.25098]
[1739371928639,0.063,192.56,192.55,29.53822181]
[1739371928837,0.063,192.56,192.55,28.53822181]
[1739371929525,0.063,192.56,192.55,33.73162181]
[1739371930032,0.063,192.56,192.55,36.10809181]
[1739371930340,0.519,192.67,192.58,1.0]
[1739371930541,0.50196,192.71,192.66,28.53822181]
[1739371930542,0.5189,192.71,192.66,28.53822181]
[1739371930740,0.5189,192.71,192.7,28.53822181]
[1739371930919,0.063,192.72,192.7,28.53822181]
[1739371931117,0.063,192.72,192.71,28.53822181]
[1739371931734,0.063,192.72,192.71,28.03822181]
[1739371932142,0.063,192.72,192.71,29.12749016]
[1739371932962,0.063,192.79,192.72,0.25098]
[1739371933141,0.063,192.79,192.78,28.53822181]
[1739371933646,0.063,192.79,192.71,0.37647]
[1739371933647,0.063,192.79,192.75,28.53822181]
[1739371934410,20.063,192.79,192.75,28.53822181]
[1739371934634,20.0,192.78,192.74,28.53822181]
[1739371935320,0.063,192.79,192.77,28.53822181]
[1739371935527,0.063,192.79,192.78,28.53822181]
[1739371936749,0.063,192.79,192.77,28.53822181]
[1739371936948,0.063,192.79,192.75,28.53822181]
[1739371937455,20.063,192.79,192.75,28.53822181]
[1739371937748,20.5817,192.79,192.73,28.53822181]
[1739371937961,20.0,192.73,192.68,28.53822181]
[1739371938128,20.0,192.73,192.67,28.53822181]
[1739371938327,20.0,192.73,192.68,28.53822181]
[1739371938635,20.0,192.73,192.62,7.46494881]
[1739371938840,20.0,192.69,192.63,28.53822181]
[1739371939145,20.0,192.69,192.65,28.53822181]
[1739371939536,20.0,192.69,192.62,28.53822181]
[1739371939741,20.519,192.65,192.61,43.79515063]
[1739371940068,20.519,192.65,192.61,28.53822181]
[1739371940246,13.53733853,192.64,192.57,28.53822181]
[1739371940445,13.53733853,192.64,192.58,28.53822181]
[1739371941054,13.53733853,192.64,192.53,1.09006997]
[1739371941055,1.8166,192.65,192.6,28.53822181]
[1739371941260,20.0,192.64,192.61,28.53822181]
[1739371941656,20.5191,192.64,192.6,28.53822181]
[1739371941860,0.5191,192.64,192.59,28.53822181]
[1739371942367,13.93094853,192.64,192.57,28.53822181]
[1739371942546,0.5191,192.64,192.58,28.53822181]
[1739371942748,0.5191,192.64,192.6,28.53822181]
[1739371942941,1.2973,192.7,192.61,28.53822181]
[1739371943141,1.2973,192.7,192.54,1.09020777]
[1739371943142,0.25098,192.69,192.59,28.53822181]
[1739371943359,13.53733853,192.64,192.56,28.53822181]
[1739371943542,20.0,192.61,192.56,28.53822181]
[1739371943744,0.5192,192.6,192.53,28.53822181]
[1739371943960,0.5192,192.6,192.54,28.53822181]
[1739371944164,0.5192,192.6,192.55,28.53822181]
[1739371944552,20.5192,192.6,192.54,28.53822181]
[1739371945068,13.53733853,192.59,192.53,28.53822181]
[1739371945249,13.53733853,192.59,192.52,28.53822181]
[1739371945449,20.0,192.56,192.52,28.53822181]
[1739371945744,20.5193,192.56,192.51,28.53822181]
[1739371946566,13.53733853,192.55,192.5,0.040724]
[1739371946759,20.0,192.52,192.5,0.040724]
[1739371947669,13.53733853,192.51,192.5,0.040724]
[1739371947876,14.05673853,192.51,192.5,0.040724]
[1739371948858,0.5194,192.51,192.5,0.040724]
[1739371949373,13.53733853,192.55,192.5,28.57894581]
[1739371949571,20.0,192.52,192.5,28.57894581]
[1739371950070,20.0,192.52,192.5,0.040724]
[1739371951672,13.53733853,192.55,192.5,0.040724]
[1739371951673,0.5193,192.54,192.5,0.040724]
[1739371951885,20.0,192.52,192.5,0.040724]
[1739371952089,0.5193,192.54,192.5,0.040724]
[1739371952090,13.91380853,192.51,192.5,0.040724]
[1739371952987,0.12549,192.46,192.39,28.53822181]
[1739371953178,20.0,192.44,192.38,28.56822181]
[1739371953379,20.0,192.44,192.38,0.03]
[1739371953581,20.0,192.44,192.38,28.56822181]
[1739371953781,0.5196,192.43,192.38,28.56822181]
[1739371954087,0.5196,192.43,192.38,0.03]
[1739371954286,13.53733853,192.42,192.38,0.03]
[1739371954972,0.5196,192.43,192.38,28.56822181]
[1739371955185,13.53733853,192.42,192.38,0.03]
[1739371955507,0.5196,192.43,192.38,0.03]
[1739371955689,1.2987,192.49,192.39,28.53822181]
[1739371955872,1.8182,192.49,192.41,28.53822181]
[1739371956066,13.53733853,192.48,192.42,28.53822181]
[1739371956294,21.8182,192.49,192.43,28.53822181]
[1739371956295,0.5195,192.49,192.43,28.53822181]
[1739371956472,0.5195,192.49,192.44,28.53822181]
[1739371956788,20.5195,192.49,192.43,28.53822181]
[1739371957095,0.5195,192.49,192.44,28.53822181]
[1739371957292,0.5194,192.51,192.46,28.53822181]
[1739371957589,0.5194,192.51,192.47,28.53822181]
[1739371957785,0.5193,192.53,192.47,28.53822181]
[1739371957997,0.12549,192.52,192.47,28.53822181]
[1739371958177,20.0,192.51,192.45,28.53822181]
[1739371958378,0.5193,192.53,192.45,28.53822181]
[1739371958579,0.5193,192.53,192.49,28.53822181]
[1739371959094,0.5193,192.53,192.48,28.53822181]
[1739371959305,0.5193,192.53,192.46,28.53822181]
[1739371959486,20.0,192.53,192.47,28.53822181]
[1739371959794,0.063,192.54,192.47,28.53822181]
[1739371960168,20.0,192.52,192.46,28.53822181]
[1739371960478,13.53733853,192.51,192.43,28.53822181]
[1739371960681,13.53733853,192.51,192.42,5.1969]
[1739371960682,13.53733853,192.51,192.42,28.53822181]
[1739371960879,0.37647,192.51,192.4,33.73542181]
[1739371961587,20.0,192.49,192.4,28.53822181]
[1739371961777,20.0,192.49,192.41,28.53822181]
[1739371961978,14.05683853,192.48,192.41,28.53822181]
[1739371962188,14.05683853,192.48,192.42,28.53822181]
[1739371962372,14.05683853,192.48,192.41,28.53822181]
[1739371962572,0.5195,192.48,192.42,28.53822181]
[1739371962775,20.0,192.49,192.45,28.53822181]
[1739371962776,20.5195,192.49,192.45,28.53822181]
[1739371963016,0.5195,192.49,192.46,28.53822181]
[1739371963205,0.5195,192.49,192.47,28.53822181]
[1739371963507,0.5195,192.49,192.41,1.09097577]
[1739371963508,0.5195,192.49,192.43,28.53822181]
[1739371963692,0.5195,192.49,192.42,28.53822181]
[1739371963693,20.0,192.48,192.42,28.53822181]
[1739371964002,0.5195,192.47,192.42,28.53822181]
[1739371964190,0.5195,192.47,192.43,28.53822181]
[1739371964499,0.5193,192.53,192.46,28.53822181]
[1739371964701,0.5193,192.53,192.49,28.53822181]
[1739371964886,0.5193,192.53,192.5,28.53822181]
[1739371965092,1.61,192.61,192.52,28.53822181]
[1739371965403,1.61,192.61,192.53,28.53822181]
[1739371965579,0.5192,192.57,192.52,28.53822181]
[1739371965786,0.5192,192.57,192.51,28.53822181]
[1739371965982,0.5192,192.58,192.51,28.53822181]
[1739371966185,0.5192,192.58,192.53,28.53822181]
[1739371966386,0.5192,192.6,192.53,28.53822181]
[1739371966701,0.5191,192.63,192.53,28.53822181]
[1739371967114,1.5451,192.66,192.53,30.00487376]
[1739371967288,0.519,192.65,192.53,30.00487376]
[1739371967614,20.519,192.65,192.53,30.00487376]
[1739371967810,0.519,192.65,192.53,30.00487376]
[1739371968509,20.519,192.65,192.53,30.00487376]
[1739371968711,0.519,192.65,192.53,35.19877376]
[1739371969022,0.519,192.67,192.57,0.12549]
[1739371969188,0.519,192.67,192.63,28.53822181]
[1739371969392,0.519,192.67,192.6,28.53822181]
[1739371969790,13.66282853,192.69,192.58,28.53822181]
[1739371970007,20.0,192.66,192.57,28.53822181]
[1739371970319,20.0,192.66,192.58,28.53822181]
[1739371971020,0.519,192.65,192.58,28.53822181]
[1739371971319,0.519,192.65,192.59,28.53822181]
[1739371971815,0.519,192.65,192.57,28.53822181]
[1739371971816,0.12549,192.64,192.57,28.53822181]
[1739371972018,0.12549,192.59,192.52,28.57404635]
[1739371972314,13.53733853,192.59,192.52,28.57404635]
[1739371972522,21.8166,192.65,192.55,28.53822181]
[1739371972822,21.8166,192.65,192.57,28.53822181]
[1739371973117,21.8166,192.65,192.53,1.09055803]
[1739371973118,20.5191,192.61,192.53,5.1938]
[1739371973324,20.5191,192.61,192.56,28.52485452]
[1739371973490,29.82245452,192.65,192.58,28.52485452]
[1739371973693,28.52485452,192.68,192.61,28.52485452]
[1739371974015,28.52485452,192.68,192.53,6.31929]
[1739371974016,13.78831853,192.68,192.57,28.52485452]
[1739371974219,28.52485452,192.62,192.56,28.52485452]
[1739371974513,28.52485452,192.67,192.6,28.52485452]
[1739371974688,13.41184853,192.66,192.6,28.52485452]
[1739371974885,13.41184853,192.66,192.61,28.52485452]
[1739371975114,29.82225452,192.69,192.62,28.52485452]
[1739371975319,0.5189,192.68,192.62,28.52485452]
[1739371975816,20.0,192.66,192.61,28.52485452]
[1739371976116,20.0,192.66,192.62,28.52485452]
[1739371976298,29.04375452,192.68,192.62,28.52485452]
[1739371976618,29.04375452,192.68,192.61,28.52485452]
[1739371976831,29.04375452,192.68,192.59,5.1922]
[1739371976832,0.5189,192.68,192.62,28.52485452]
[1739371976998,0.5189,192.7,192.67,28.52485452]
[1739371977442,20.5189,192.7,192.65,28.52485452]
[1739371977727,0.5189,192.7,192.65,28.52485452]
[1739371977907,0.5189,192.7,192.66,28.52485452]
[1739371978108,0.5189,192.71,192.66,28.52485452]
[1739371978330,48.52485452,192.7,192.64,28.52485452]
[1739371978715,28.65034452,192.69,192.62,28.52485452]
[1739371978911,0.03,192.63,192.61,28.52485452]
[1739371979230,0.03,192.63,192.62,28.52485452]
[1739371980203,0.03,192.63,192.59,5.1921]
[1739371980204,0.03,192.63,192.59,28.52485452]
[1739371980516,0.03,192.63,192.57,28.52485452]
[1739371980833,28.52485452,192.61,192.55,28.52485452]
[1739371981129,28.52485452,192.6,192.54,28.52485452]
[1739371981426,28.52485452,192.58,192.52,28.56067906]
[1739371981599,42.06219305,192.61,192.54,28.52485452]
[1739371981806,28.52485452,192.62,192.56,28.52485452]
[1739371982137,28.52485452,192.61,192.55,28.52485452]